[Event "UZB-ch Men Final 2019"]
[Site "Tashkent"]
[Date "2019.07.07"]
[Round "6.1"]
[White "Abdisalimov, Abdimalik"]
[Black "Sabirov, Asilbek"]
[Result "0-1"]
[ECO "D03"]
[WhiteElo "2391"]
[BlackElo "2147"]
[Annotator "NA"]
[PlyCount "54"]
[EventDate "2019.07.02"]
[EventType "tourn"]
[EventCountry "UZB"]
[SourceTitle "playchess.com"]
[Source "ChessBase"]
[SourceQuality "1"]
[TimeControl "5400+30"]

1. d4 {[%emt 0:00:35]} d5 {[%emt 0:00:08]} 2. Nf3 {[%emt 0:02:54]} Nf6 {[%emt 0:00:19]} 3. Bg5 {[%emt 0:00:20]} c6 {[%emt 0:02:16]} 4. Nbd2 {[%emt 0:00:28]} h6 {[%emt 0:02:53]} 5. Bxf6 {[%emt 0:00:49]} exf6 {[%emt 0:00:15]} 6. e4 {[%emt 0:00:19]} dxe4 {[%emt 0:02:54]} 7. Nxe4 {[%emt 0:00:04]} Be7 {[%emt 0:01:09]} 8. Bc4 {[%emt 0:02:06]} O-O {[%emt 0:00:45]} 9. O-O {[%emt 0:00:04]} Nd7 {[%emt 0:01:38]} 10. Re1 {[%emt 0:04:15]} Nb6 {[%emt 0:00:30]} 11. Bb3 {[%emt 0:00:30]} Bg4 {[%emt 0:00:30]} 12. c3 {[%emt 0:00:30]} g6 {[%emt 0:00:30]} 13. h3 {[%emt 0:17:00]} Bxf3 {[%emt 0:18:56]} 14. Qxf3 {[%emt 0:00:12]} f5 {[%emt 0:00:44]} 15. Nc5 Qc7 {[%emt 0:08:35]} 16. Re2 {[%emt 0:16:54]} Rad8 {[%emt 0:02:44]} 17. Qe3 {[%emt 0:05:14]} Bg5 {[%emt 0:07:42]} 18. Qe5 {[%emt 0:00:10]} Rc8 {[%emt 0:09:16]} 19. Rae1 {[%emt 0:00:16]} Nd7 {[%emt 0:01:11]} 20. Qxc7 {[%emt 0:00:11]} Rxc7 {[%emt 0:00:02]} 21. Re7 {[%emt 0:00:33]} Bxe7 {[%emt 0:01:13]} 22. Rxe7 {[%emt 0:00:06]} Nxc5 {[%emt 0:01:29]} 23. Rxc7 {[%emt 0:00:01]} Nxb3 {[%emt 0:00:15]} 24. axb3 {[%emt 0:00:01]} Rb8 {[%emt 0:00:15]} 25. Kf1 {[%emt 0:01:15]} g5 {[%emt 0:00:22]} 26. Ke2 {[%emt 0:00:10]} Kg7 {[%emt 0:00:08]} 27. Kd3 {[%emt 0:00:04]} Kf6 {[%emt 0:00:05]} 0-1

[Event "UZB-ch Men Final 2019"]
[Site "Tashkent"]
[Date "2019.07.07"]
[Round "6.2"]
[White "Rakhimov, Rakhmatjon"]
[Black "Abdusattorov, Nodirbek"]
[Result "0-1"]
[ECO "E12"]
[WhiteElo "2107"]
[BlackElo "2598"]
[Annotator "ChessBase"]
[PlyCount "110"]
[EventDate "2019.07.02"]
[EventType "tourn"]
[EventCountry "UZB"]
[SourceTitle "playchess.com"]
[Source "ChessBase"]
[SourceQuality "1"]
[TimeControl "5400+30"]

1. d4 {[%emt 0:00:00]} Nf6 {[%emt 0:00:00]} 2. c4 {[%emt 0:00:04]} e6 {[%emt 0:00:18]} 3. Nf3 {[%emt 0:00:57]} b6 {[%emt 0:00:17]} 4. Bf4 {[%emt 0:01:50]} Bb7 {[%emt 0:01:00]} 5. e3 {[%emt 0:00:18]} Ne4 {[%emt 0:01:45]} 6. Bd3 {[%emt 0:01:36]} Bb4+ {[%emt 0:03:15]} 7. Kf1 {[%emt 0:00:03]} Be7 {[%emt 0:02:42]} 8. h4 {[%emt 0:00:28]} h6 {[%emt 0:04:26]} 9. Qc2 {[%emt 0:07:44]} Nf6 {[%emt 0:07:32]} 10. Nc3 {[%emt 0:04:38]} d6 {[%emt 0:01:21]} 11. e4 {[%emt 0:06:03]} Ng4 {[%emt 0:04:54]} 12. e5 {[%emt 0:01:29]} O-O {[%emt 0:08:35]} 13. Bh7+ {[%emt 0:07:55]} Kh8 {[%emt 0:00:11]} 14. Be4 {[%emt 0:00:09]} Nc6 {[%emt 0:05:27]} 15. Bxc6 {[%emt 0:07:47]} Bxc6 {[%emt 0:00:10]} 16. Ng5 {[%emt 0:00:07]} g6 {[%emt 0:01:56]} 17. Qe2 {[%emt 0:06:15]} dxe5 {[%emt 0:04:10]} 18. dxe5 {[%emt 0:06:21]} Nxf2 {[%emt 0:08:03]} 19. Kxf2 {[%emt 0:03:39]} hxg5 20. hxg5+ {[%emt 0:07:43]} Kg7 {[%emt 0:01:01]} 21. Rad1 {[%emt 0:00:12]} Qe8 {[%emt 0:02:38]} 22. Ne4 {[%emt 0:07:18]} Bxe4 {[%emt 0:01:21]} 23. Qxe4 {[%emt 0:00:03]} Qa4 {[%emt 0:00:44]} 24. Bc1 {[%emt 0:05:57]} Rad8 {[%emt 0:05:18]} 25. Rxd8 {[%emt 0:07:56]} Rxd8 {[%emt 0:00:10]} 26. Be3 {[%emt 0:00:09]} Qxa2 {[%emt 0:06:17]} 27. Qh4 {[%emt 0:01:16]} Qxb2+ {[%emt 0:00:18]} 28. Kf3 {[%emt 0:01:37]} Qxe5 {[%emt 0:00:07]} 29. Qh6+ {[%emt 0:05:24]} Kg8 {[%emt 0:00:10]} 30. Qh7+ {[%emt 0:04:37]} Kf8 {[%emt 0:00:06]} 31. Qh8+ {[%emt 0:00:15]} Qxh8 {[%emt 0:00:00]} 32. Rxh8+ {[%emt 0:00:09]} Kg7 {[%emt 0:00:10]} 33. Rh4 {[%emt 0:00:08]} f6 {[%emt 0:01:15]} 34. gxf6+ {[%emt 0:00:08]} Bxf6 {[%emt 0:00:05]} 35. Rh1 {[%emt 0:00:20]} a5 {[%emt 0:00:06]} 36. g4 {[%emt 0:00:06]} g5 {[%emt 0:00:07]} 37. c5 {[%emt 0:00:20]} a4 {[%emt 0:00:54]} 38. cxb6 {[%emt 0:00:52]} cxb6 {[%emt 0:00:05]} 39. Bxb6 {[%emt 0:00:05]} Rd3+ {[%emt 0:02:24]} 40. Ke4 {[%emt 0:00:24]} Rg3 {[%emt 0:00:08]} 41. Bc5 {[%emt 0:01:08]} Rxg4+ {[%emt 0:00:15]} 42. Kd3 {[%emt 0:00:02]} Rh4 {[%emt 0:01:08]} 43. Rb1 {[%emt 0:00:10]} Kg6 {[%emt 0:00:26]} 44. Rb7 {[%emt 0:00:25]} Rh1 {[%emt 0:01:58]} 45. Ra7 {[%emt 0:00:20]} Ra1 {[%emt 0:00:18]} 46. Ke4 {[%emt 0:00:09]} g4 {[%emt 0:01:49]} 47. Ra6 {[%emt 0:00:09]} Rc1 {[%emt 0:01:26]} 48. Be3 {[%emt 0:02:00]} Re1 {[%emt 0:03:09]} 49. Kd3 {[%emt 0:01:12]} g3 {[%emt 0:02:54]} 50. Rxa4 {[%emt 0:00:23]} Bg5 {[%emt 0:00:20]} 51. Bc5 {[%emt 0:03:21]} Kf5 {[%emt 0:00:34]} 52. Bb4 {[%emt 0:01:13]} g2 {[%emt 0:00:38]} 53. Ra5+ {[%emt 0:00:28]} e5 {[%emt 0:00:14]} 54. Bxe1 {[%emt 0:00:38]} g1=Q {[%emt 0:00:08]} 55. Bc3 {[%emt 0:00:05]} Bf4 {[%emt 0:00:25] Kd4} 0-1

[Event "UZB-ch Men Final 2019"]
[Site "Tashkent"]
[Date "2019.07.07"]
[Round "6.3"]
[White "Saydaliev, Saidakbar"]
[Black "Vokhidov, Shamsiddin"]
[Result "0-1"]
[ECO "A04"]
[WhiteElo "2384"]
[BlackElo "2515"]
[Annotator "ChessBase"]
[PlyCount "75"]
[EventDate "2019.07.02"]
[EventType "tourn"]
[EventCountry "UZB"]
[SourceTitle "playchess.com"]
[Source "ChessBase"]
[SourceQuality "1"]
[TimeControl "5400+30"]

1. Nf3 {[%emt 0:00:00]} c5 {[%emt 0:02:43]} 2. c4 {[%emt 0:00:00]} Nf6 {[%emt 0:01:04]} 3. g3 {[%emt 0:05:38]} Nc6 {[%emt 0:03:53]} 4. Bg2 {[%emt 0:01:38]} d5 {[%emt 0:00:25]} 5. O-O {[%emt 0:12:07]} e5 {[%emt 0:05:09]} 6. cxd5 {[%emt 0:01:44]} Nxd5 {[%emt 0:00:06]} 7. Nc3 {[%emt 0:00:14]} Nc7 {[%emt 0:01:02]} 8. d3 {[%emt 0:03:03]} Be7 {[%emt 0:00:11]} 9. Be3 {[%emt 0:01:38]} O-O {[%emt 0:02:45]} 10. Rc1 {[%emt 0:04:40]} Bd7 {[%emt 0:08:36]} 11. Nd2 {[%emt 0:04:24]} Rc8 {[%emt 0:05:40]} 12. a3 {[%emt 0:15:06]} b6 {[%emt 0:06:41]} 13. Nc4 {[%emt 0:00:14]} f6 {[%emt 0:05:01]} 14. f4 {[%emt 0:01:22]} exf4 {[%emt 0:01:39]} 15. Bxf4 {[%emt 0:01:16]} Kh8 {[%emt 0:05:47]} 16. e3 {[%emt 0:20:25]} Ne6 {[%emt 0:03:50]} 17. Bd6 {[%emt 0:00:35]} Be8 {[%emt 0:00:49]} 18. Bxe7 {[%emt 0:02:39]} Qxe7 {[%emt 0:03:40]} 19. Nd5 {[%emt 0:00:14]} Qd8 {[%emt 0:01:43]} 20. Qe2 {[%emt 0:05:46]} Bf7 {[%emt 0:01:05]} 21. Nc3 {[%emt 0:00:16]} Qd7 {[%emt 0:01:54]} 22. Rcd1 {[%emt 0:00:04]} Rcd8 {[%emt 0:00:23]} 23. Qf3 {[%emt 0:01:45]} Ne7 {[%emt 0:01:05]} 24. b4 {[%emt 0:08:00]} Ng5 {[%emt 0:03:05]} 25. Qe2 {[%emt 0:00:01]} Nd5 {[%emt 0:03:01]} 26. Ne4 {[%emt 0:02:23]} Nxe4 {[%emt 0:00:55]} 27. Bxe4 {[%emt 0:01:18]} Nc3 {[%emt 0:00:10]} 28. Qc2 {[%emt 0:00:04]} Nxd1 {[%emt 0:00:30]} 29. Rxd1 {[%emt 0:00:03]} Rfe8 {[%emt 0:01:47]} 30. Rf1 {[%emt 0:03:45]} cxb4 {[%emt 0:01:31]} 31. axb4 {[%emt 0:00:03]} Rc8 {[%emt 0:00:33]} 32. Bf5 {[%emt 0:01:23]} Be6 {[%emt 0:00:02]} 33. Bxe6 {[%emt 0:00:16]} Qxe6 {[%emt 0:00:41]} 34. b5 {[%emt 0:00:04]} Qd5 {[%emt 0:00:22]} 35. Rb1 {[%emt 0:00:47]} Red8 {[%emt 0:01:38]} 36. Rb3 {[%emt 0:00:30]} Rc5 {[%emt 0:00:08]} 37. Qb1 {[%emt 0:00:06]} Qh5 {[%emt 0:02:18]} 38. Qd1 0-1

[Event "UZB-ch Men Final 2019"]
[Site "Tashkent"]
[Date "2019.07.07"]
[Round "6.4"]
[White "Karimov, Ibragim"]
[Black "Yakubboev, Nodirbek"]
[Result "1/2-1/2"]
[ECO "A88"]
[WhiteElo "2211"]
[BlackElo "2575"]
[Annotator "ChessBase"]
[PlyCount "190"]
[EventDate "2019.07.02"]
[EventType "tourn"]
[EventCountry "UZB"]
[SourceTitle "playchess.com"]
[Source "ChessBase"]
[SourceQuality "1"]
[TimeControl "5400+30"]

1. Nf3 {[%emt 0:00:00]} d6 {[%emt 0:03:58]} 2. d4 {[%emt 0:00:19]} f5 {[%emt 0:00:18]} 3. g3 {[%emt 0:05:47]} Nf6 {[%emt 0:03:08]} 4. Bg2 {[%emt 0:00:09]} g6 {[%emt 0:00:29]} 5. O-O {[%emt 0:02:51]} Bg7 {[%emt 0:00:09]} 6. c4 {[%emt 0:01:01]} O-O {[%emt 0:00:15]} 7. Nc3 {[%emt 0:00:08]} c6 {[%emt 0:00:07]} 8. d5 {[%emt 0:04:31]} e5 {[%emt 0:02:13]} 9. dxe6 {[%emt 0:22:02]} Bxe6 {[%emt 0:00:08]} 10. Bf4 {[%emt 0:12:53]} Bxc4 {[%emt 0:05:36]} 11. Qxd6 {[%emt 0:05:50]} Qxd6 {[%emt 0:08:48]} 12. Bxd6 {[%emt 0:00:07]} Re8 {[%emt 0:01:42]} 13. Ne5 {[%emt 0:13:18]} Be6 {[%emt 0:18:47]} 14. Rfd1 {[%emt 0:02:55]} Nbd7 {[%emt 0:00:30]} 15. Rac1 {[%emt 0:02:47]} Nb6 {[%emt 0:01:43]} 16. Nd3 {[%emt 0:09:12]} Nfd5 {[%emt 0:06:48]} 17. Nxd5 {[%emt 0:00:13]} Bxd5 {[%emt 0:00:07]} 18. Bxd5+ {[%emt 0:01:03]} Nxd5 {[%emt 0:00:28]} 19. e3 {[%emt 0:00:10]} Rad8 {[%emt 0:02:38]} 20. Ba3 {[%emt 0:00:57]} Kf7 {[%emt 0:02:53]} 21. Kg2 {[%emt 0:01:17]} g5 {[%emt 0:02:17]} 22. h3 {[%emt 0:00:16]} h5 {[%emt 0:00:14]} 23. Nc5 {[%emt 0:00:49]} Re7 {[%emt 0:01:14]} 24. Nb3 {[%emt 0:01:17]} Red7 {[%emt 0:01:45]} 25. Kf3 {[%emt 0:00:08]} Nf6 {[%emt 0:07:05]} 26. Rxd7+ {[%emt 0:00:26]} Rxd7 {[%emt 0:00:00]} 27. Ke2 {[%emt 0:02:46]} Ne4 {[%emt 0:01:47]} 28. Rc4 {[%emt 0:01:36]} g4 {[%emt 0:05:31]} 29. hxg4 {[%emt 0:00:09]} hxg4 {[%emt 0:00:01]} 30. Rc2 {[%emt 0:01:36]} Rd5 {[%emt 0:07:06]} 31. Bb4 {[%emt 0:01:22]} Ke6 {[%emt 0:01:39]} 32. a4 {[%emt 0:00:56]} Be5 {[%emt 0:00:59]} 33. Be1 {[%emt 0:01:09]} c5 {[%emt 0:01:00]} 34. Na5 {[%emt 0:01:40]} b6 {[%emt 0:01:48]} 35. Nc4 {[%emt 0:00:53]} Rd7 {[%emt 0:00:32]} 36. Nd2 {[%emt 0:02:11]} Kd5 {[%emt 0:00:38]} 37. b3 {[%emt 0:01:14]} a6 {[%emt 0:01:10]} 38. Nc4 {[%emt 0:00:08]} Bc7 {[%emt 0:01:16]} 39. Na3 {[%emt 0:00:19]} Rh7 {[%emt 0:01:15]} 40. Kd3 {[%emt 0:00:42]} Rh1 {[%emt 0:01:07]} 41. Ke2 {[%emt 0:00:04]} Rh2 {[%emt 0:00:43]} 42. Kd3 {[%emt 0:00:14]} Bd6 {[%emt 0:00:54]} 43. f3 {[%emt 0:00:47]} Bxg3 {[%emt 0:02:16]} 44. Bxg3 {[%emt 0:00:18]} Rh3 {[%emt 0:00:03]} 45. fxe4+ {[%emt 0:00:22]} fxe4+ {[%emt 0:00:02]} 46. Ke2 {[%emt 0:00:05]} Rxg3 {[%emt 0:00:03]} 47. Rd2+ {[%emt 0:00:03]} Kc6 {[%emt 0:00:26]} 48. Nc4 {[%emt 0:00:13]} b5 {[%emt 0:01:26]} 49. Ne5+ {[%emt 0:01:52]} Kb6 {[%emt 0:00:18]} 50. Rd6+ {[%emt 0:01:42]} Ka5 {[%emt 0:00:01]} 51. Nc6+ {[%emt 0:01:02]} Kb6 {[%emt 0:00:01]} 52. Ne5+ {[%emt 0:00:08]} Ka5 {[%emt 0:00:01]} 53. Kf2 {[%emt 0:00:25]} Rh3 {[%emt 0:00:06]} 54. Nc6+ {[%emt 0:00:02]} Kb6 {[%emt 0:00:05]} 55. a5+ {[%emt 0:00:07]} Kc7 {[%emt 0:00:05]} 56. Rg6 {[%emt 0:00:02]} Rf3+ {[%emt 0:00:47]} 57. Ke2 {[%emt 0:01:33]} g3 {[%emt 0:00:01]} 58. Kd2 {[%emt 0:00:53]} Rf2+ {[%emt 0:00:22]} 59. Kc3 {[%emt 0:00:09]} g2 {[%emt 0:00:25]} 60. Ne7 {[%emt 0:00:19]} Kd7 {[%emt 0:00:21]} 61. Ng8 {[%emt 0:00:23]} Re2 {[%emt 0:02:55]} 62. Nf6+ {[%emt 0:00:24]} Ke6 {[%emt 0:00:12]} 63. Nh5+ {[%emt 0:00:55]} Kf5 {[%emt 0:00:52]} 64. Rg8 {[%emt 0:01:09]} Rxe3+ {[%emt 0:00:41]} 65. Kd2 {[%emt 0:00:15]} Rxb3 {[%emt 0:01:01]} 66. Ng3+ {[%emt 0:00:06]} Ke5 {[%emt 0:01:12]} 67. Ne2 {[%emt 0:00:06]} e3+ {[%emt 0:00:42]} 68. Kc2 {[%emt 0:00:24]} Ra3 {[%emt 0:00:01]} 69. Rxg2 {[%emt 0:00:29]} Ke4 {[%emt 0:00:49]} 70. Nc3+ {[%emt 0:00:51]} Kf4 {[%emt 0:01:51]} 71. Rg8 {[%emt 0:01:15]} b4 {[%emt 0:00:42]} 72. Rf8+ {[%emt 0:00:04]} Kg4 {[%emt 0:01:06]} 73. Rg8+ {[%emt 0:00:14]} Kf3 {[%emt 0:00:29]} 74. Rf8+ {[%emt 0:00:05]} Kg2 {[%emt 0:00:12]} 75. Nd5 {[%emt 0:00:31]} Kg3 {[%emt 0:03:45]} 76. Nf4 {[%emt 0:00:55]} c4 {[%emt 0:00:25]} 77. Ne2+ {[%emt 0:00:49]} Kg2 {[%emt 0:00:17]} 78. Nf4+ {[%emt 0:00:13]} Kh2 {[%emt 0:00:38]} 79. Nd5 {[%emt 0:00:32]} Ra2+ {[%emt 0:00:43]} 80. Kc1 {[%emt 0:01:20]} e2 {[%emt 0:00:31]} 81. Re8 {[%emt 0:00:21]} b3 {[%emt 0:01:01]} 82. Nc3 {[%emt 0:00:22]} Rc2+ {[%emt 0:00:17]} 83. Kb1 {[%emt 0:00:03]} Rxc3 {[%emt 0:00:09]} 84. Rxe2+ {[%emt 0:00:03]} Kg3 {[%emt 0:01:21]} 85. Re6 {[%emt 0:00:09]} Rd3 {[%emt 0:00:27]} 86. Kb2 {[%emt 0:00:59]} Rd2+ {[%emt 0:00:12]} 87. Kc1 {[%emt 0:00:06]} b2+ {[%emt 0:01:30]} 88. Kb1 {[%emt 0:00:15]} Kf3 {[%emt 0:01:03]} 89. Rc6 {[%emt 0:00:06]} Ke4 {[%emt 0:00:27]} 90. Rxc4+ {[%emt 0:00:07]} Kd5 {[%emt 0:00:30]} 91. Rb4 {[%emt 0:00:13]} Kc5 {[%emt 0:00:11]} 92. Rb6 {[%emt 0:00:12]} Rd6 {[%emt 0:00:30]} 93. Rxd6 {[%emt 0:00:06]} Kxd6 {[%emt 0:00:02]} 94. Kxb2 {[%emt 0:00:06]} Kc5 {[%emt 0:00:03]} 95. Kb3 {[%emt 0:00:04]} Kb5 {[%emt 0:00:00]} 1/2-1/2

[Event "UZB-ch Men Final 2019"]
[Site "Tashkent"]
[Date "2019.07.07"]
[Round "6.5"]
[White "Iuldachev, Saidali"]
[Black "Nigmatov, Ortik"]
[Result "1/2-1/2"]
[ECO "C48"]
[WhiteElo "2451"]
[BlackElo "2488"]
[Annotator "ChessBase"]
[PlyCount "88"]
[EventDate "2019.07.02"]
[EventType "tourn"]
[EventCountry "UZB"]
[SourceTitle "playchess.com"]
[Source "ChessBase"]
[SourceQuality "1"]
[TimeControl "5400+30"]

1. e4 {[%emt 0:00:00]} e5 {[%emt 0:00:00]} 2. Nf3 {[%emt 0:00:26]} Nc6 {[%emt 0:00:00]} 3. Nc3 {[%emt 0:01:04]} Nf6 {[%emt 0:00:00]} 4. Bb5 {[%emt 0:00:06]} Bd6 {[%emt 0:00:00]} 5. d3 {[%emt 0:06:36]} O-O {[%emt 0:00:25]} 6. a3 {[%emt 0:02:06]} Re8 {[%emt 0:00:06]} 7. Bc4 {[%emt 0:00:13]} Bc5 {[%emt 0:00:16]} 8. h3 {[%emt 0:11:53]} a6 {[%emt 0:00:34]} 9. Ba2 {[%emt 0:06:31]} Nd4 {[%emt 0:18:57]} 10. O-O {[%emt 0:08:36]} c6 {[%emt 0:01:35]} 11. Be3 {[%emt 0:03:46]} h6 {[%emt 0:10:32]} 12. Bxd4 {[%emt 0:07:44]} exd4 {[%emt 0:02:04]} 13. Ne2 {[%emt 0:00:07]} d5 {[%emt 0:00:22]} 14. exd5 {[%emt 0:11:01]} Nxd5 {[%emt 0:00:31]} 15. Qd2 {[%emt 0:03:24]} Qd6 {[%emt 0:20:07]} 16. Rae1 {[%emt 0:09:51]} Bd7 {[%emt 0:03:27]} 17. Kh1 {[%emt 0:02:47]} Nf6 {[%emt 0:08:45]} 18. Ng3 {[%emt 0:03:13]} Bb6 {[%emt 0:07:21]} 19. Rxe8+ {[%emt 0:03:55]} Rxe8 {[%emt 0:00:24]} 20. Re1 {[%emt 0:00:03]} c5 {[%emt 0:03:44]} 21. Rxe8+ {[%emt 0:00:10]} Nxe8 {[%emt 0:01:30]} 22. Qe2 {[%emt 0:03:21]} Nf6 {[%emt 0:08:09]} 23. Ne4 {[%emt 0:08:18]} Nxe4 {[%emt 0:08:55]} 24. Qxe4 {[%emt 0:00:12]} Bc6 {[%emt 0:00:55]} 25. Qf5 {[%emt 0:02:31]} Qd7 {[%emt 0:01:29]} 26. Qxd7 {[%emt 0:01:26]} Bxd7 {[%emt 0:00:02]} 27. Bd5 {[%emt 0:00:08]} Bc8 {[%emt 0:00:44]} 28. Kg1 {[%emt 0:03:55]} Bc7 {[%emt 0:00:07]} 29. Kf1 {[%emt 0:00:10]} Bf4 {[%emt 0:00:37]} 30. a4 {[%emt 0:00:13]} Kf8 {[%emt 0:01:23]} 31. Ke2 {[%emt 0:00:07]} Ke7 {[%emt 0:01:02]} 32. Nd2 {[%emt 0:00:05]} Bc7 {[%emt 0:00:43]} 33. h4 {[%emt 0:01:51]} f5 {[%emt 0:00:27]} 34. g3 {[%emt 0:00:09]} Kd6 {[%emt 0:00:16]} 35. Bf7 {[%emt 0:00:27]} Bd7 {[%emt 0:00:42]} 36. b3 {[%emt 0:00:13]} b5 {[%emt 0:00:39]} 37. axb5 axb5 {[%emt 0:00:01]} 38. f4 {[%emt 0:00:38]} Bc6 {[%emt 0:01:01]} 39. Nf3 {[%emt 0:00:49]} Ke7 {[%emt 0:00:05]} 40. Bg8 {[%emt 0:00:52]} g6 {[%emt 0:01:08]} 41. Kf2 {[%emt 0:00:23]} Kf8 {[%emt 0:00:36]} 42. Be6 {[%emt 0:00:07]} Kg7 {[%emt 0:00:29]} 43. Ke2 {[%emt 0:00:19]} Kf6 {[%emt 0:00:22]} 44. Bg8 {[%emt 0:00:18]} Bb7 {[%emt 0:00:34]} 1/2-1/2

[Event "UZB-ch Men Final 2019"]
[Site "Tashkent"]
[Date "2019.07.07"]
[Round "6.6"]
[White "Sindarov, Javokhir"]
[Black "Khoroshev, Nikita"]
[Result "1-0"]
[ECO "B06"]
[WhiteElo "2479"]
[BlackElo "2414"]
[Annotator "ChessBase"]
[PlyCount "49"]
[EventDate "2019.07.02"]
[EventType "tourn"]
[EventCountry "UZB"]
[SourceTitle "playchess.com"]
[Source "ChessBase"]
[SourceQuality "1"]
[TimeControl "5400+30"]

1. e4 {[%emt 0:00:00]} g6 {[%emt 0:02:42]} 2. d4 {[%emt 0:00:00]} Bg7 {[%emt 0:00:12]} 3. Nc3 {[%emt 0:00:00]} a6 {[%emt 0:00:06]} 4. h4 {[%emt 0:00:43]} h5 {[%emt 0:00:06]} 5. Be3 {[%emt 0:00:49]} d6 {[%emt 0:00:06]} 6. Qd2 {[%emt 0:00:29]} b5 {[%emt 0:00:06]} 7. O-O-O {[%emt 0:00:56]} Bb7 {[%emt 0:00:04]} 8. f3 {[%emt 0:00:16]} Nd7 {[%emt 0:00:13]} 9. Nh3 {[%emt 0:01:32]} c5 {[%emt 0:00:27]} 10. Ng5 {[%emt 0:00:57]} cxd4 {[%emt 0:00:17]} 11. Bxd4 {[%emt 0:00:23]} Ngf6 {[%emt 0:00:01]} 12. Kb1 {[%emt 0:01:09]} Rc8 {[%emt 0:01:17]} 13. a3 {[%emt 0:06:13]} Nb6 {[%emt 0:01:06]} 14. Qf2 {[%emt 0:01:40]} Nc4 {[%emt 0:00:11]} 15. Bxc4 {[%emt 0:00:45]} Rxc4 {[%emt 0:00:06]} 16. e5 {[%emt 0:00:30]} Nh7 {[%emt 0:02:43]} 17. exd6 {[%emt 0:00:48]} Bxd4 {[%emt 0:00:54]} 18. Rxd4 {[%emt 0:00:10]} Nxg5 {[%emt 0:00:28]} 19. d7+ {[%emt 0:02:25]} Kf8 {[%emt 0:00:06]} 20. Rxc4 {[%emt 0:01:09]} Ne6 {[%emt 0:00:24]} 21. Qa7 {[%emt 0:01:17]} bxc4 {[%emt 0:01:02]} 22. Qxb7 {[%emt 0:00:06]} Kg7 {[%emt 0:00:03]} 23. Rd1 {[%emt 0:00:09]} Qa8 {[%emt 0:00:53]} 24. Qb4 {[%emt 0:00:09]} Qc6 {[%emt 0:00:53]} 25. Qxe7 {[%emt 0:00:12]} 1-0

[Event "UZB-ch Men Final 2019"]
[Site "Tashkent"]
[Date "2019.07.08"]
[Round "7.1"]
[White "Nigmatov, Ortik"]
[Black "Sindarov, Javokhir"]
[Result "*"]
[ECO "C55"]
[WhiteElo "2488"]
[BlackElo "2479"]
[Annotator "RC"]
[PlyCount "90"]
[EventDate "2019.07.02"]
[EventType "tourn"]
[EventCountry "UZB"]
[SourceTitle "playchess.com"]
[Source "ChessBase"]
[SourceQuality "1"]
[TimeControl "5400+30"]

1. e4 {[%emt 0:00:00]} e5 {[%emt 0:08:38]} 2. Nf3 {[%emt 0:00:00]} Nc6 {[%emt 0:00:04]} 3. Bc4 {[%emt 0:00:00]} Nf6 {[%emt 0:00:15]} 4. d3 {[%emt 0:00:00]} h6 {[%emt 0:00:21]} 5. c3 {[%emt 0:00:57]} d6 {[%emt 0:00:06]} 6. O-O {[%emt 0:00:29]} g6 {[%emt 0:00:16]} 7. d4 {[%emt 0:02:25]} Qe7 {[%emt 0:00:43]} 8. dxe5 {[%emt 0:11:08]} Nxe5 {[%emt 0:01:23]} 9. Nxe5 {[%emt 0:01:13]} dxe5 {[%emt 0:00:06]} 10. Be3 {[%emt 0:03:20]} Nxe4 {[%emt 0:15:53]} 11. Bxf7+ {[%emt 0:15:38]} Qxf7 {[%emt 0:00:24]} 12. Qa4+ {[%emt 0:00:03]} Bd7 {[%emt 0:00:04]} 13. Qxe4 {[%emt 0:00:05]} O-O-O {[%emt 0:00:05]} 14. Rd1 {[%emt 0:02:35]} Qf5 {[%emt 0:06:26]} 15. Qc4 {[%emt 0:07:35]} Be7 {[%emt 0:00:22]} 16. Nd2 {[%emt 0:02:16]} a6 {[%emt 0:04:27]} 17. Nf1 {[%emt 0:09:33]} Bb5 {[%emt 0:08:23]} 18. Qb3 {[%emt 0:00:42]} g5 {[%emt 0:01:52]} 19. Ng3 {[%emt 0:09:52]} Qg6 {[%emt 0:00:13]} 20. c4 {[%emt 0:00:45]} Bc6 {[%emt 0:00:33]} 21. Qc3 {[%emt 0:00:59]} Bf6 {[%emt 0:08:42]} 22. b4 {[%emt 0:09:20]} Ba4 {[%emt 0:02:48]} 23. Rd5 {[%emt 0:00:54]} Bc6 {[%emt 0:04:15]} 24. Rdd1 {[%emt 0:03:25]} Ba4 {[%emt 0:04:00]} 25. Rd5 {[%emt 0:00:06]} c6 {[%emt 0:01:28]} 26. Rxd8+ {[%emt 0:00:17]} Rxd8 {[%emt 0:00:05]} 27. Rc1 {[%emt 0:01:48]} Rd3 {[%emt 0:07:15]} 28. Qe1 {[%emt 0:00:07]} h5 {[%emt 0:04:10]} 29. Bb6 {[%emt 0:00:41]} g4 {[%emt 0:03:02]} 30. Ne4 {[%emt 0:11:21]} Bg5 {[%emt 0:01:29]} 31. Qe2 {[%emt 0:01:54]} Rd7 {[%emt 0:03:29]} 32. Re1 {[%emt 0:01:57]} Bd1 {[%emt 0:02:26]} 33. Qb2 {[%emt 0:00:01]} Bf4 {[%emt 0:00:16]} 34. b5 {[%emt 0:02:52]} cxb5 {[%emt 0:00:16]} 35. c5 {[%emt 0:01:16]} Rd5 {[%emt 0:04:16]} 36. g3 {[%emt 0:00:22]} Bh6 {[%emt 0:00:58]} 37. Nd6+ {[%emt 0:01:35]} Kd7 {[%emt 0:00:05]} 38. Nxb7 {[%emt 0:00:52]} Bf3 {[%emt 0:00:13]} 39. Nd6 {[%emt 0:00:26]} Bd2 {[%emt 0:00:53]} 40. Rf1 {[%emt 0:00:33]} Qd3 {[%emt 0:00:33]} 41. Nf7 {[%emt 0:00:30]} Bc3 {[%emt 0:00:49]} 42. Qc1 {[%emt 0:00:36]} b4 {[%emt 0:00:56]} 43. Nd8 {[%emt 0:00:27]} Be4 {[%emt 0:00:29]} 44. c6+ {[%emt 0:00:07]} Kc8 {[%emt 0:00:05]} 45. Qe3 {[%emt 0:00:44]} Qxf1+ {[%emt 0:00:13]} *

[Event "UZB-ch Men Final 2019"]
[Site "Tashkent"]
[Date "2019.07.08"]
[Round "7.2"]
[White "Yakubboev, Nodirbek"]
[Black "Iuldachev, Saidali"]
[Result "*"]
[ECO "D20"]
[WhiteElo "2575"]
[BlackElo "2451"]
[Annotator "RC"]
[PlyCount "61"]
[EventDate "2019.07.02"]
[EventType "tourn"]
[EventCountry "UZB"]
[SourceTitle "playchess.com"]
[Source "ChessBase"]
[SourceQuality "1"]
[TimeControl "5400+30"]

1. d4 {[%emt 0:00:00]} d5 {[%emt 0:00:15]} 2. c4 {[%emt 0:00:00]} dxc4 {[%emt 0:00:53]} 3. e4 {[%emt 0:00:00]} e5 {[%emt 0:01:15]} 4. Nf3 {[%emt 0:00:10]} exd4 {[%emt 0:00:16]} 5. Bxc4 {[%emt 0:00:03]} Nc6 {[%emt 0:00:17]} 6. O-O {[%emt 0:00:10]} Be6 {[%emt 0:00:20]} 7. Bb5 {[%emt 0:00:05]} Bc5 {[%emt 0:00:15]} 8. b4 {[%emt 0:03:00]} Bb6 {[%emt 0:00:18]} 9. Nbd2 {[%emt 0:15:55]} Nf6 {[%emt 0:05:34]} 10. Ne5 {[%emt 0:02:45]} O-O {[%emt 0:01:57]} 11. Nxc6 {[%emt 0:01:20]} bxc6 {[%emt 0:00:38]} 12. Bxc6 {[%emt 0:00:07]} Rb8 {[%emt 0:00:22]} 13. a4 {[%emt 0:07:11]} Ng4 {[%emt 0:08:19]} 14. Nf3 {[%emt 0:12:24]} Bc4 {[%emt 0:05:00]} 15. h3 {[%emt 0:20:26]} Ne3 {[%emt 0:31:45]} 16. fxe3 {[%emt 0:03:47]} dxe3 {[%emt 0:00:10]} 17. Qe1 {[%emt 0:04:49]} Bxf1 {[%emt 0:04:12]} 18. a5 {[%emt 0:03:27]} Bd4 {[%emt 0:05:49]} 19. Nxd4 {[%emt 0:01:27]} Qxd4 {[%emt 0:00:05]} 20. Bxe3 {[%emt 0:00:04]} Qf6 {[%emt 0:00:50]} 21. Bxa7 {[%emt 0:08:06]} Rxb4 {[%emt 0:26:40]} 22. Bc5 {[%emt 0:05:36]} Rb2 {[%emt 0:00:03]} 23. Qxf1 {[%emt 0:02:07]} Qxc6 {[%emt 0:00:03]} 24. Bxf8 {[%emt 0:00:22]} Kxf8 {[%emt 0:00:06]} 25. a6 {[%emt 0:00:37]} Rb8 {[%emt 0:00:28]} 26. Qf5 {[%emt 0:03:52]} h6 {[%emt 0:01:50]} 27. Rf1 {[%emt 0:03:00]} f6 {[%emt 0:01:48]} 28. e5 {[%emt 0:00:55]} Rb2 {[%emt 0:01:04]} 29. Qg4 {[%emt 0:01:51]} h5 {[%emt 0:01:31]} 30. Qg3 {[%emt 0:00:40]} h4 {[%emt 0:01:42]} 31. Qa3+ {[%emt 0:00:16]} *